bitfinex/quotes_ETHUSD_20250623
["timestamp","ask_amount","ask_price","bid_price","bid_amount"]
[1750684167618,8.1458,2261.5,2261.0,3.35930851]
[1750684167619,2.6918,2261.5,2261.0,3.35930851]
[1750684167846,2.6918,2261.5,2261.0,7.78198874]
[1750684168316,2.6918,2261.5,2261.1,10.0]
[1750684168517,0.6358,2261.5,2261.1,10.0]
[1750684168851,0.6358,2261.9,2261.2,15.73556093]
[1750684169057,2.056,2261.8,2261.2,16.54596093]
[1750684170256,2.056,2261.8,2261.3,4.42221419]
[1750684170553,0.6358,2261.9,2261.2,20.96838039]
[1750684170856,2.6918,2261.9,2261.3,3.53908317]
[1750684171163,0.6358,2261.9,2261.4,10.0]
[1750684171315,0.6358,2262.2,2261.8,13.95736206]
[1750684171516,2.056,2262.3,2261.8,13.95736206]
[1750684172144,2.056,2262.3,2261.7,24.78966206]
[1750684172348,2.056,2262.3,2261.7,10.0]
[1750684172662,0.6358,2262.2,2261.7,10.0]
[1750684173344,0.6358,2262.2,2261.6,10.0]
[1750684173541,0.6358,2262.2,2261.8,10.0]
[1750684173922,2.047,2262.4,2261.8,10.0]
[1750684174257,2.047,2262.4,2261.8,12.39573621]
[1750684174453,0.6358,2262.5,2261.9,5.19728412]
[1750684174652,2.6828,2262.5,2261.9,5.19728412]
[1750684174839,2.6828,2262.5,2261.9,0.7763]
[1750684175045,2.6828,2262.5,2261.8,12.39573621]
[1750684175551,2.6828,2262.5,2261.6,0.7763]
[1750684175552,2.6828,2262.5,2261.6,15.1979312]
[1750684175927,0.6358,2262.5,2261.8,10.0]
[1750684176155,9.567,2262.4,2261.8,14.42116544]
[1750684176355,9.567,2262.4,2261.8,10.0]
[1750684177018,9.567,2262.4,2261.8,14.42124869]
[1750684177218,9.567,2262.4,2261.9,2.83786108]
[1750684177417,2.6828,2262.5,2261.9,2.83786108]
[1750684177629,2.6828,2262.5,2262.0,4.42084922]
[1750684177970,2.047,2262.5,2262.1,0.7526]
[1750684178140,2.047,2262.5,2261.9,2.83786108]
[1750684178347,2.047,2262.5,2262.0,1.8011609]
[1750684178653,2.047,2262.5,2261.9,2.83786108]
[1750684178853,2.047,2262.5,2261.6,14.42153139]
[1750684178854,0.6358,2262.4,2261.6,14.42153139]
[1750684179064,0.6358,2262.4,2261.6,14.7906429]
[1750684179240,0.6358,2262.4,2261.6,14.79058529]
[1750684179431,0.6358,2262.4,2261.7,4.4214319]
[1750684179631,0.6358,2262.4,2261.8,1.92120172]
[1750684181765,2.047,2262.5,2261.9,0.8011]
[1750684182157,2.047,2262.5,2261.8,1.92120172]
[1750684183032,0.6358,2262.2,2261.8,1.92120172]
[1750684183233,0.6358,2262.2,2261.7,1.25333572]
[1750684183660,0.6358,2262.2,2261.8,10.0]
[1750684184050,0.9,2262.3,2261.8,10.0]
[1750684184335,0.9,2262.3,2261.8,14.42118032]
[1750684185934,2.6828,2262.5,2261.8,14.42118032]
[1750684186135,2.6828,2262.5,2261.9,3.4053287]
[1750684186575,2.6828,2262.5,2261.8,10.0]
[1750684187243,0.6358,2262.4,2261.7,0.45223572]
[1750684187450,0.6358,2262.4,2261.6,0.36911151]
[1750684187834,0.6358,2262.4,2261.6,10.36911151]
[1750684188035,0.9,2262.2,2261.6,0.36911151]
[1750684188242,0.6358,2262.0,2261.6,0.36911151]
[1750684188460,16.74973621,2262.1,2261.6,0.36911151]
[1750684188461,0.6358,2261.8,2261.6,0.36911151]
[1750684190747,0.6358,2261.8,2261.0,10.43530025]
[1750684191050,0.6358,2261.8,2261.0,10.0]
[1750684192280,0.6358,2261.8,2261.0,14.42279931]
[1750684192459,0.6358,2261.8,2261.1,2.83801614]
[1750684193780,9.541,2261.7,2261.2,10.0]
[1750684194184,0.6358,2261.8,2261.2,10.0]
[1750684194185,0.6358,2261.8,2261.4,4.42189962]
[1750684194482,2.047,2262.0,2261.4,13.95736206]
[1750684194777,2.047,2262.0,2261.2,10.0]
[1750684194976,2.047,2262.0,2261.3,2.67953782]
[1750684195973,0.6358,2261.9,2261.3,2.67953782]
[1750684197046,0.6358,2261.9,2261.0,15.64999272]
[1750684197666,0.6358,2261.9,2261.0,11.22727906]
[1750684199302,0.6358,2261.9,2261.0,10.43677906]
[1750684199650,0.6358,2261.9,2261.0,14.85956989]
[1750684200470,0.6358,2261.9,2261.0,10.43677906]
[1750684200704,0.6358,2261.8,2261.1,15.44333307]
[1750684200880,10.1688,2261.8,2261.2,10.0]
[1750684201257,9.533,2261.8,2261.1,1.48597101]
[1750684201605,9.533,2261.8,2261.2,10.0]
[1750684201606,2.6828,2261.7,2261.2,10.0]
[1750684201810,2.6828,2261.7,2261.3,2.54433331]
[1750684201957,2.6828,2261.7,2260.9,10.0]
[1750684202296,0.6358,2261.6,2260.9,10.0]
[1750684203252,0.6358,2261.6,2260.7,10.0]
[1750684204184,0.6358,2261.6,2260.6,0.7888]
[1750684204393,0.6358,2261.4,2260.7,2.12168478]
[1750684205867,0.6358,2261.3,2260.7,2.12168478]
[1750684206098,2.021,2261.2,2260.7,2.12168478]
[1750684206299,0.6358,2261.1,2260.6,10.0]
[1750684206540,0.6358,2260.7,2259.8,0.2257069]
[1750684206813,0.6358,2260.4,2259.8,0.2257069]
[1750684207116,2.021,2260.3,2259.8,0.2257069]
[1750684207403,0.6358,2260.2,2259.8,0.2257069]
[1750684207619,2.022,2260.1,2259.8,3.0865501]
[1750684207803,2.022,2260.1,2259.8,0.2257069]
[1750684208915,0.55,2259.9,2259.8,0.06582305]
[1750684209211,0.55,2259.9,2257.7,0.7949]
[1750684209212,0.55,2259.7,2257.7,0.7949]
[1750684209428,10.55,2259.0,2257.8,1.4977969]
[1750684209716,0.55,2259.5,2257.8,1.4977969]
[1750684209717,1.055,2259.6,2257.8,13.95736206]
[1750684209923,1.055,2259.6,2257.6,0.2257069]
[1750684209924,1.05336366,2259.8,2258.2,10.0]
[1750684210068,1.331352,2259.5,2258.8,10.0]
[1750684210275,10.308,2259.7,2258.8,10.0]
[1750684211240,10.67713681,2259.7,2258.8,10.0]
[1750684211717,0.36848924,2259.6,2258.7,10.0]
[1750684211939,1.43613816,2259.6,2258.7,1.07934]
[1750684212119,1.43613816,2259.6,2258.7,11.07934]
[1750684212298,1.43613816,2259.6,2258.7,1.07934]
[1750684212631,1.43613816,2259.6,2258.7,11.07934]
[1750684212837,1.43613816,2259.6,2258.7,1.07934]
[1750684213034,1.17441382,2259.5,2258.5,0.7934]
[1750684213332,1.17441382,2259.5,2258.5,5.22110058]
[1750684213494,1.17441382,2259.5,2258.7,14.42726989]
[1750684213699,1.17441382,2259.5,2258.7,10.0]
[1750684213936,1.17441382,2259.5,2258.5,0.7934]
[1750684214118,0.57,2259.7,2259.0,4.42673185]
[1750684214312,9.734,2259.6,2259.2,10.0]
[1750684214506,9.734,2259.6,2259.1,14.42654133]
[1750684214834,0.57,2259.7,2258.8,10.0]
[1750684215024,0.57,2259.7,2259.1,10.0]
[1750684215633,0.57,2259.7,2258.9,1.49773195]
[1750684215838,0.52895011,2259.7,2258.9,5.92463006]
[1750684216528,0.52895011,2259.7,2259.2,4.42622116]
[1750684216920,0.52895011,2259.7,2259.4,10.0]
[1750684217248,0.52895011,2259.7,2259.4,11.88524934]
[1750684217445,0.52895011,2259.7,2259.4,1.88524934]
[1750684217744,0.52895011,2259.7,2259.0,4.42662109]
[1750684217908,0.52895011,2259.7,2258.9,14.42683594]
[1750684218243,2.109,2259.6,2258.9,14.42683594]
[1750684218540,2.109,2259.5,2259.0,4.42673488]
[1750684218747,2.109,2259.5,2259.0,1.88537867]
[1750684219854,2.109,2259.5,2259.2,10.0]
[1750684220034,8.17495011,2259.7,2259.2,4.42625539]
[1750684220035,0.52895011,2259.7,2259.2,4.42625539]
[1750684220240,2.109,2259.6,2259.0,11.88537867]
[1750684220435,2.109,2259.6,2259.1,4.42637896]
[1750684220753,2.109,2259.6,2259.2,2.07383192]
[1750684221654,2.109,2259.6,2259.2,12.07383192]
[1750684221835,2.109,2259.6,2259.0,1.88537867]
[1750684222019,2.109,2259.6,2259.0,10.55]
[1750684222523,2.109,2259.6,2258.9,10.0]
[1750684223252,2.109,2259.6,2258.9,14.42690086]
[1750684223434,2.109,2259.6,2259.1,10.0]
[1750684223610,2.109,2259.6,2259.1,14.4265346]
[1750684224442,2.63795011,2259.7,2259.3,14.42607406]
[1750684224631,2.63795011,2259.7,2259.3,10.0]
[1750684225753,2.109,2259.8,2259.2,5.19107411]
[1750684225913,2.109,2259.8,2259.3,14.42599269]
[1750684226118,0.529,2260.0,2259.4,1.51907927]
[1750684226347,0.529,2260.0,2259.4,11.51907927]
[1750684226554,0.529,2260.0,2259.4,1.51907927]
[1750684226962,0.529,2260.0,2259.3,10.0]
[1750684230659,0.529,2260.0,2258.9,5.18024564]
[1750684230828,0.529,2260.0,2259.1,10.0]
[1750684231022,9.72,2259.9,2259.1,10.0]
[1750684231439,7.611,2259.8,2259.3,10.0]
[1750684231757,0.529,2260.0,2259.3,5.8686295]
[1750684231924,2.109,2259.9,2259.2,4.42616742]
[1750684232124,2.109,2259.9,2259.3,10.0]
[1750684232564,2.109,2259.9,2259.1,4.42642997]
[1750684232862,2.109,2259.9,2259.4,10.0]
[1750684233072,2.109,2259.9,2259.1,14.42641528]
[1750684233225,2.109,2259.9,2259.3,10.0]
[1750684233428,0.529,2260.0,2259.3,14.42613984]
[1750684233639,2.109,2259.9,2259.3,10.0]
[1750684233836,0.529,2260.0,2259.6,4.42555852]
[1750684234037,7.76,2260.3,2259.3,0.55]
[1750684234038,2.109,2260.2,2259.4,0.7606]
[1750684234223,2.109,2260.2,2259.7,10.0]
[1750684234840,2.109,2260.2,2259.6,10.0]
[1750684236078,2.109,2260.2,2259.5,1.57367481]
[1750684236250,0.529,2260.1,2259.3,10.0]
[1750684236867,0.529,2260.1,2259.2,1.88530732]
[1750684237064,0.529,2260.1,2259.0,10.0]
[1750684237243,0.529,2260.1,2259.0,14.42671346]
[1750684237444,0.529,2260.1,2259.0,4.42671346]
[1750684237644,0.529,2260.1,2259.0,14.42671346]
[1750684237842,0.529,2260.1,2259.1,10.0]
[1750684238094,0.529,2259.9,2259.1,11.88536467]
[1750684238381,7.594,2259.8,2259.1,11.88536467]
[1750684238578,2.109,2259.7,2259.1,1.88536467]
[1750684239744,0.529,2259.6,2259.1,1.88536467]
[1750684240789,0.529,2259.6,2258.8,14.74088434]
[1750684240955,0.529,2259.6,2258.5,0.8015]
[1750684241156,0.529,2259.6,2258.3,4.42799489]
[1750684241484,0.529,2259.4,2258.3,14.42798936]
[1750684241682,0.529,2259.4,2258.4,4.42790006]
[1750684241898,0.529,2259.2,2258.5,10.88558894]
[1750684242102,0.529,2259.2,2258.5,0.88558894]
[1750684243300,0.529,2259.2,2258.1,19.20277125]
[1750684243662,0.529,2259.0,2257.9,4.42879901]
[1750684244107,0.529,2259.0,2258.0,10.0]
[1750684244409,0.529,2259.0,2258.1,18.40120403]
[1750684244772,0.529,2259.0,2258.2,10.0]
[1750684245002,1.3579,2259.0,2258.2,13.2829821]
[1750684245178,0.529,2259.0,2258.4,10.0]
[1750684245379,2.608,2259.0,2258.2,13.2829821]
[1750684245705,2.608,2259.0,2258.2,17.71128743]
[1750684246205,2.608,2259.0,2258.2,13.2829821]
[1750684246564,0.529,2258.9,2258.0,0.45294606]
[1750684246767,0.529,2258.8,2257.9,4.42888831]
[1750684247007,2.08,2258.7,2258.0,4.42861229]
[1750684247193,2.08,2258.7,2258.1,14.42836734]
[1750684247393,0.529,2258.8,2258.1,14.42836734]
[1750684247594,2.609,2258.8,2258.2,1.44283673]
[1750684247904,0.529,2258.8,2258.2,1.44283673]
[1750684248129,0.529,2258.8,2258.2,5.87112606]
[1750684248297,0.529,2258.8,2258.2,5.87096805]
[1750684248483,0.529,2258.8,2258.2,5.87105438]
[1750684249207,0.7899,2258.8,2258.0,10.0]
[1750684249412,0.7899,2258.8,2258.0,14.42866768]
[1750684249613,0.7899,2258.8,2258.1,4.42850054]
[1750684249813,0.7899,2258.8,2257.9,0.55]
[1750684250021,0.94205848,2258.7,2257.6,0.2257069]
[1750684250320,0.94205848,2258.7,2257.6,0.98175465]
[1750684250321,0.529,2258.6,2257.6,0.98175465]
[1750684250518,10.2,2258.5,2257.6,15.86195926]
[1750684250819,8.289,2258.4,2257.6,0.2257069]
[1750684251117,0.529,2258.3,2257.6,0.2257069]
[1750684252116,0.529,2258.3,2258.0,4.42856006]
[1750684252415,2.08,2258.8,2258.2,10.0]
[1750684252614,0.529,2258.7,2257.9,4.42881782]
[1750684252816,0.529,2258.7,2258.0,1.88578342]
[1750684253129,0.9,2258.6,2258.0,1.88578342]
[1750684253691,0.9,2258.6,2258.2,10.0]
[1750684254086,0.9,2258.6,2258.2,14.4282983]
[1750684254287,0.9,2258.6,2258.3,4.42808526]
[1750684254484,0.9,2258.6,2258.3,1.44280853]
[1750684257527,0.9,2258.6,2258.1,14.42840968]
[1750684257692,0.9,2258.6,2258.1,4.42849443]
[1750684257891,0.9,2258.6,2258.1,10.0]
[1750684258534,0.9,2258.6,2258.0,1.88578342]
[1750684258703,0.529,2258.5,2258.0,1.88578342]
[1750684259408,0.529,2258.5,2258.1,10.0]
[1750684259803,0.529,2258.5,2258.1,12.07432189]
[1750684260821,0.529,2258.5,2258.1,2.07432189]
[1750684261013,0.529,2258.5,2258.3,10.0]
[1750684261209,0.9,2258.6,2258.2,14.42818259]
[1750684261414,0.9,2258.6,2258.2,10.0]
[1750684261814,0.9,2258.6,2258.1,2.07432189]
[1750684262025,0.9,2258.6,2257.8,15.2177099]
[1750684262209,0.9,2258.6,2257.9,4.42885685]
[1750684262412,0.529,2258.5,2257.8,10.0]
[1750684262633,0.529,2258.5,2257.6,14.63226772]
[1750684262833,2.08,2258.4,2257.7,10.0]
[1750684263144,0.529,2258.3,2257.6,0.2257069]
[1750684263344,0.2609,2258.2,2257.6,0.2257069]
[1750684263546,0.529,2258.3,2257.6,0.2257069]
[1750684263715,0.529,2258.3,2257.6,14.65517092]
[1750684263900,0.529,2258.3,2257.6,10.2257069]
[1750684264097,0.529,2258.3,2257.6,0.2257069]
[1750684264300,0.529,2258.3,2257.6,10.2257069]
[1750684264509,0.529,2258.3,2257.6,3.13421878]
[1750684264809,0.529,2258.3,2257.6,0.2257069]
[1750684265953,0.529,2258.2,2257.6,0.2257069]
[1750684266147,2.08,2258.1,2257.6,0.2257069]
[1750684266922,0.529,2258.2,2257.7,4.42911227]
[1750684267125,0.529,2258.5,2257.8,23.97278434]
[1750684267339,0.529,2258.5,2258.0,4.42859754]
[1750684267517,0.529,2258.5,2257.9,12.39727843]
[1750684267712,0.529,2258.5,2258.0,4.42861128]
[1750684267913,0.529,2258.5,2257.9,16.826138]
[1750684268112,0.529,2258.5,2257.9,12.39727843]
[1750684269161,1.079,2258.4,2257.6,0.2257069]
[1750684269448,0.529,2258.0,2257.6,0.2257069]
[1750684269612,0.529,2257.8,2257.6,0.2257069]
[1750684270447,0.529,2257.7,2257.6,0.2257069]
[1750684270664,23.31094665,2257.7,2257.6,0.2257069]
[1750684270812,22.89717843,2257.7,2257.6,0.2257069]
[1750684271012,23.31095009,2257.7,2257.6,0.2257069]
[1750684271734,12.89717843,2257.7,2257.6,0.2257069]
[1750684271948,10.239,2257.7,2257.6,0.2257069]
[1750684272360,10.65286947,2257.7,2257.6,0.2257069]
[1750684272860,0.529,2257.7,2257.6,0.2257069]
[1750684273060,2.638,2257.7,2257.6,0.2257069]
[1750684274338,10.398,2257.7,2257.6,0.2257069]
[1750684274539,12.2005,2257.7,2257.6,0.2257069]
[1750684274966,12.61388608,2257.7,2257.6,0.2257069]
[1750684275267,12.61389302,2257.7,2257.6,0.2257069]
[1750684275627,18.022,2257.7,2257.6,0.2257069]
[1750684275861,8.289,2257.7,2257.6,0.2257069]
[1750684276068,18.019,2257.7,2257.6,0.2257069]
[1750684276267,18.289,2257.7,2257.6,0.2257069]
[1750684276452,8.289,2257.7,2257.6,0.2257069]
[1750684277170,10.093,2257.7,2257.6,0.2257069]
[1750684278571,8.289,2257.7,2257.6,0.2257069]
[1750684280792,7.76,2257.7,2257.6,0.2257069]
[1750684284486,0.529,2257.9,2257.6,0.2257069]
[1750684284684,7.76,2258.2,2257.6,0.2257069]
[1750684284685,8.149,2258.1,2257.6,0.2257069]
[1750684284886,7.76,2258.0,2257.6,0.2257069]
[1750684285224,0.529,2257.9,2257.6,0.2257069]
[1750684286872,7.619,2257.8,2257.6,0.1757069]
[1750684287806,0.529,2258.1,2257.6,0.1757069]
[1750684288098,7.616,2258.2,2257.6,0.1757069]
[1750684288300,8.144,2258.3,2257.6,6.54605762]
[1750684288506,0.529,2258.3,2257.7,4.42926686]
[1750684288714,15.903,2258.5,2257.9,0.7734]
[1750684289468,8.289,2258.5,2257.9,5.20223426]
[1750684289673,8.14,2258.5,2257.9,0.7734]
[1750684289904,8.14,2258.5,2258.0,1.47461843]
[1750684290416,8.14,2258.5,2257.7,10.779]
[1750684291196,7.611,2258.4,2257.7,10.779]
[1750684293379,7.76,2258.3,2257.7,10.779]
[1750684294524,1.079,2258.2,2257.6,0.1757069]
[1750684294725,2.109,2258.1,2257.6,0.1757069]
[1750684294883,0.529,2258.2,2257.6,0.9658069]
[1750684295238,8.289,2258.4,2257.6,0.9658069]
[1750684295436,7.604,2258.3,2257.6,0.9658069]
[1750684300230,0.529,2258.2,2257.6,0.1757069]
[1750684302190,1.079,2258.2,2257.6,0.1757069]
[1750684302504,1.8683,2258.1,2257.6,0.1757069]
[1750684303297,11.8683,2258.1,2257.6,0.1757069]
[1750684303506,0.529,2258.0,2257.6,0.1757069]
[1750684303695,2.092,2257.9,2257.6,0.1757069]
[1750684303894,7.606,2257.8,2257.6,0.1757069]
[1750684304214,0.9698,2257.7,2257.6,0.1757069]
[1750684305616,8.5698,2257.7,2257.6,0.1757069]
[1750684306018,7.6,2257.7,2257.6,0.1757069]
[1750684306909,0.529,2258.0,2257.6,0.1757069]
[1750684307109,8.01239237,2257.9,2257.6,0.1757069]
[1750684307315,7.598,2257.9,2257.6,0.1757069]
[1750684307726,0.41446379,2257.8,2257.6,0.1757069]
[1750684307931,1.47782077,2257.8,2257.6,0.1757069]
[1750684308117,1.06334638,2257.8,2257.6,0.1757069]
[1750684311295,0.94349582,2257.7,2257.6,0.1757069]
[1750684311694,2.0042493,2257.7,2257.6,0.1757069]
[1750684311919,12.5542493,2257.7,2257.6,0.1757069]
[1750684312123,14.67580887,2257.7,2257.6,0.1757069]
[1750684312420,14.67547332,2257.7,2257.6,0.1757069]
[1750684312622,14.67547242,2257.7,2257.6,0.1757069]
[1750684312938,13.61474536,2257.7,2257.6,0.1757069]
[1750684313634,12.53574536,2257.7,2257.6,0.1757069]
[1750684313834,22.21574536,2257.7,2257.6,0.1757069]
[1750684314002,22.21564095,2257.7,2257.6,0.1757069]
[1750684314196,29.56155957,2257.7,2257.6,0.1757069]
[1750684314399,29.97557572,2257.7,2257.6,0.1757069]
[1750684314630,29.97657572,2257.7,2257.6,0.1757069]
[1750684315532,29.97659,2257.7,2257.6,0.1757069]
[1750684316344,30.50559,2257.7,2257.6,0.1757069]
[1750684317032,30.50551347,2257.7,2257.6,0.1757069]
[1750684317433,20.29551347,2257.7,2257.6,0.1757069]
[1750684317635,27.88551347,2257.7,2257.6,0.1757069]
[1750684318536,28.96451347,2257.7,2257.6,0.1757069]
[1750684319001,30.02390024,2257.7,2257.6,0.1757069]
[1750684319200,30.02390409,2257.7,2257.6,0.1757069]
[1750684319638,29.05994634,2257.7,2257.6,0.1757069]
[1750684319823,29.60994634,2257.7,2257.6,0.1757069]
[1750684320138,28.55055957,2257.7,2257.6,0.1757069]
[1750684320339,11.77330585,2257.7,2257.6,0.1757069]
[1750684320543,18.32179061,2257.7,2257.6,0.1757069]
[1750684321242,10.71379061,2257.7,2257.6,0.1757069]
[1750684321537,18.29423104,2257.7,2257.6,0.1757069]
[1750684321930,8.59223104,2257.7,2257.6,0.1757069]
[1750684322110,15.66923104,2257.7,2257.6,0.1757069]
[1750684322304,8.06323104,2257.7,2257.6,0.1757069]
[1750684322506,7.76,2257.7,2257.6,0.1757069]
[1750684322708,18.251,2258.1,2257.6,0.9815069]
[1750684322945,18.251,2258.1,2257.7,0.54110921]
[1750684323344,7.606,2258.1,2257.8,0.8058]
[1750684323817,2.092,2258.4,2257.8,0.8058]
[1750684324146,7.605,2258.3,2257.8,0.8058]
[1750684325343,0.55,2258.2,2257.6,0.9815069]
[1750684325541,2.2445,2258.1,2257.6,0.9815069]
[1750684325841,2.2445,2258.1,2257.6,0.1757069]
[1750684325842,7.6,2258.0,2257.6,0.1757069]
[1750684326046,9.852,2257.9,2257.6,0.1757069]
[1750684326348,0.529,2257.7,2257.6,0.1757069]
[1750684326531,8.139,2257.7,2257.6,0.1757069]
[1750684326841,17.7531,2257.7,2257.6,0.1757069]
[1750684327360,19.36337147,2257.7,2257.6,0.1757069]
[1750684327914,11.75337147,2257.7,2257.6,0.1757069]
[1750684328115,21.44937147,2257.7,2257.6,0.1757069]
[1750684328716,31.44937147,2257.7,2257.6,0.1757069]
[1750684330932,31.46337147,2257.7,2257.6,0.1757069]
[1750684331160,21.75337147,2257.7,2257.6,0.1757069]
[1750684331349,30.91137147,2257.7,2257.6,0.1757069]
[1750684332978,10.67437147,2257.7,2257.6,0.1757069]
[1750684333135,17.475,2257.7,2257.6,0.1757069]
[1750684333477,29.08569452,2257.7,2257.6,0.1757069]
[1750684334880,29.50008424,2257.7,2257.6,0.1757069]
[1750684335182,29.48908424,2257.7,2257.6,0.1757069]
[1750684335350,8.17438972,2257.7,2257.6,0.1757069]
[1750684335547,7.76,2257.7,2257.6,1.0032069]
[1750684335772,7.606,2257.7,2257.6,1.0032069]
[1750684336286,17.462,2257.8,2257.6,1.0032069]
[1750684336454,7.76,2257.8,2257.6,1.0032069]
[1750684336657,7.605,2257.9,2257.6,1.0032069]
[1750684337238,7.604,2257.9,2257.6,1.0032069]
[1750684338186,7.602,2258.0,2257.6,1.0032069]
[1750684338540,7.602,2258.0,2257.6,1.54651121]
[1750684339070,7.602,2258.0,2257.6,1.0032069]
[1750684339652,7.603,2257.9,2257.6,1.0032069]
[1750684341099,27.15861373,2257.7,2257.6,0.1757069]
[1750684341302,27.15862121,2257.7,2257.6,0.1757069]
[1750684341511,50.62319877,2257.7,2257.6,0.1757069]
[1750684341661,58.23422253,2257.7,2257.6,0.1757069]
[1750684342215,0.55,2257.5,2256.5,0.8015]
[1750684342379,0.55,2257.5,2256.2,0.7774]
[1750684342380,10.55,2257.3,2256.2,0.7774]
[1750684342720,10.55,2257.0,2256.2,0.7774]
[1750684342885,10.0,2256.8,2256.2,0.7774]
[1750684344520,7.606,2256.8,2256.2,0.7774]
[1750684345088,9.856,2256.9,2256.4,0.8065]
[1750684346519,7.76,2256.9,2256.6,10.8143]
[1750684346677,7.76,2256.9,2256.7,3.73615617]
[1750684346876,7.76,2257.4,2256.7,3.73615617]
[1750684347199,10.00523104,2257.4,2256.7,3.73615617]
[1750684347408,10.00523104,2257.4,2256.7,0.8143]
[1750684348022,0.41366909,2257.3,2256.7,0.8143]
[1750684348202,0.41361525,2257.3,2256.7,0.8143]
[1750684348411,0.41361525,2257.3,2256.1,14.43241225]
[1750684348412,0.529,2257.1,2256.4,0.8143]
[1750684348723,7.62,2257.0,2256.4,0.8143]
[1750684348869,2.096,2256.9,2256.4,0.8143]
[1750684349075,9.856,2256.9,2256.4,0.8143]
[1750684351198,9.711,2256.8,2256.4,0.8143]
[1750684354318,10.24,2256.8,2256.0,0.8299]
[1750684355744,0.529,2256.8,2256.0,5.26243221]
[1750684355938,7.76,2256.9,2256.1,1.96952442]
[1750684355939,9.704,2256.7,2256.1,1.96952442]
[1750684356238,7.76,2256.9,2256.2,10.8299]
[1750684356409,17.462,2256.9,2256.3,5.26192395]
[1750684356610,7.76,2256.9,2256.3,5.26192395]
[1750684356812,17.46,2256.9,2256.3,5.26192395]
[1750684357039,7.76,2256.9,2256.5,10.0]
[1750684357416,7.76,2256.9,2256.4,1.5261924]
[1750684357748,7.76,2256.9,2256.3,0.8299]
[1750684358041,7.76,2256.9,2256.3,5.26192955]
[1750684358240,7.76,2256.9,2256.4,5.25439804]
[1750684358542,9.856,2257.0,2256.4,0.8226]
[1750684358901,9.856,2257.0,2256.5,4.43147418]
[1750684359107,7.76,2257.0,2256.7,0.8249]
[1750684363039,7.599,2256.9,2256.0,0.7611]
[1750684363362,7.599,2256.9,2256.0,10.7611]
[1750684363527,7.599,2256.9,2256.0,0.7611]
[1750684364258,0.529,2257.0,2256.2,0.759]
[1750684364259,10.0,2257.0,2256.2,0.759]
[1750684364463,9.684,2256.9,2256.2,10.759]
[1750684364673,17.443,2257.1,2256.3,0.83]
[1750684364969,17.443,2257.1,2256.4,1.083]
[1750684365455,17.443,2257.1,2256.5,0.83]
[1750684368942,0.41413794,2257.0,2256.3,0.7604]
[1750684369352,0.41421878,2256.9,2256.3,0.7604]
[1750684369548,17.443,2257.1,2256.3,0.7604]
[1750684369761,2.15850974,2257.0,2256.3,0.7604]
[1750684369969,0.41491258,2256.9,2256.3,0.7604]
[1750684370270,1.7443,2257.0,2256.3,0.7604]
[1750684370439,0.41493151,2256.9,2256.3,0.7604]
[1750684370641,1.7443,2257.0,2256.3,0.7604]
[1750684370942,0.41495801,2256.9,2256.3,0.7604]
[1750684371149,0.4149762,2256.8,2256.3,0.7604]
[1750684371457,2.80643587,2257.0,2256.3,0.7604]
[1750684371770,0.94399703,2256.9,2256.3,0.7604]
[1750684371969,0.41499703,2256.8,2256.3,0.7604]
[1750684372178,7.589,2256.7,2256.3,0.7604]
[1750684372488,9.675,2256.8,2256.3,1.83644]
[1750684373948,0.41516633,2256.7,2256.3,1.83644]
[1750684374149,9.675,2256.8,2256.3,1.83644]
[1750684374558,9.675,2256.8,2256.3,0.7604]
[1750684376788,9.664,2257.0,2256.5,0.8114]
[1750684377093,2.086,2257.0,2256.6,0.8053]
[1750684378065,0.4152225,2256.9,2256.6,0.8053]
[1750684378389,1.02612225,2256.9,2256.6,0.8053]
[1750684378972,2.086,2257.0,2256.6,0.8053]
[1750684379464,0.41524045,2256.9,2256.6,0.8053]
[1750684379673,2.086,2257.0,2256.6,0.8053]
[1750684379998,0.41522364,2256.9,2256.6,0.8053]
[1750684380161,2.086,2257.0,2256.6,0.8053]
[1750684380363,0.41523381,2256.9,2256.6,0.8053]
[1750684380577,2.086,2257.0,2256.6,0.8053]
[1750684380773,3.8282,2257.0,2256.6,0.8053]
[1750684381063,0.41523796,2256.9,2256.3,0.7702]
[1750684381263,7.574,2256.8,2256.3,0.7702]
[1750684382384,7.574,2256.8,2256.2,4.43204453]
[1750684382585,7.574,2256.8,2256.4,0.767]
[1750684382778,2.086,2257.0,2256.5,10.0]
[1750684383002,9.659,2257.0,2256.5,15.19853802]
[1750684383187,9.659,2257.0,2256.5,0.767]
[1750684383864,7.76,2257.1,2256.5,0.767]
[1750684384064,17.413,2257.1,2256.6,1.51988009]
[1750684384262,17.413,2257.1,2256.6,4.43143635]
[1750684384500,9.846,2257.1,2256.6,0.8056]
[1750684384660,9.846,2257.1,2256.6,5.23703238]
[1750684384864,9.846,2257.1,2256.6,0.8056]
[1750684385304,9.846,2257.1,2256.6,5.23696369]
[1750684385502,9.846,2257.1,2256.6,7.20380874]
[1750684385866,2.086,2257.5,2256.9,0.8036]
[1750684386071,7.76,2257.7,2257.3,0.8036]
[1750684387213,7.76,2257.7,2257.4,4.42983498]
[1750684387509,7.568,2258.1,2257.5,0.8126]
[1750684387708,9.846,2258.2,2257.5,1.3368435]
[1750684388205,9.846,2258.2,2257.5,5.76640054]
[1750684388509,9.846,2258.2,2257.5,0.8126]
[1750684389381,17.41,2258.2,2257.5,0.8126]
[1750684395425,17.41,2258.2,2257.5,5.24227438]
[1750684395598,17.41,2258.2,2257.6,0.8123]